fUST/lending_fUST_20250828
["ID","MTS","AMOUNT","RATE_DAILY","PERIOD"]
[381880057,1756386640773,-480.0,0.00019178,2]
[381880058,1756386640782,-480.0,0.00019178,2]
[381880059,1756386640792,-480.0,0.00019178,2]
[381880060,1756386640801,-480.0,0.00019178,2]
[381880061,1756386640810,-480.0,0.00019178,2]
[381880062,1756386640819,-480.0,0.00019178,2]
[381880063,1756386640829,-480.0,0.00019178,2]
[381880064,1756386640837,-480.0,0.00019178,2]
[381880065,1756386640847,-480.0,0.00019178,2]
[381880066,1756386640856,-494.25,0.00019178,2]
[381880067,1756386640865,-480.0,0.00019178,2]
[381880068,1756386640875,-480.0,0.00019178,2]
[381880069,1756386640884,-480.0,0.00019178,2]
[381880070,1756386640893,-500.0,0.00019178,2]
[381880071,1756386640902,-480.0,0.00019178,2]
[381880072,1756386640910,-482.62,0.00019178,2]
[381880073,1756386640919,-480.0,0.00019178,2]
[381880074,1756386640928,-480.0,0.00019178,2]
[381880075,1756386640937,-486.74,0.00019178,2]
[381880076,1756386640947,-190.52068735,0.00019178,2]
[381880077,1756386640956,-513.42,0.00019178,2]
[381880078,1756386640965,-480.0,0.00019178,2]
[381880079,1756386640974,-509.26,0.00019178,2]
[381880080,1756386640984,-480.0,0.00019178,2]
[381880081,1756386640993,-480.0,0.00019178,2]
[381880082,1756386641002,-480.0,0.00019178,2]
[381880083,1756386641011,-480.0,0.00019178,2]
[381880084,1756386641021,-480.0,0.00019178,2]
[381880085,1756386641030,-480.0,0.00019178,2]
[381880086,1756386641039,-480.0,0.00019178,2]
[381880087,1756386641049,-957.15,0.00019178,2]
[381880088,1756386641059,-480.0,0.00019178,2]
[381880089,1756386641068,-480.0,0.00019178,2]
[381880090,1756386641077,-480.0,0.00019178,2]
[381880091,1756386641086,-480.0,0.00019178,2]
[381880092,1756386641096,-518.45795962,0.00019178,2]
[381880093,1756386641106,-676.42,0.00019178,2]
[381880094,1756386641117,-480.0,0.00019178,2]
[381880095,1756386641126,-466.28953477,0.00019178,2]
[381880096,1756386641135,-789.26,0.00019178,2]
[381880097,1756386641146,-480.0,0.00019178,2]
[381880098,1756386641155,-480.0,0.00019178,2]
[381880099,1756386641165,-480.0,0.00019178,2]
[381880100,1756386641175,-480.0,0.00019178,2]
[381880101,1756386641184,-480.0,0.00019178,2]
[381880102,1756386641193,-480.0,0.00019178,2]
[381880103,1756386641203,-480.0,0.00019178,2]
[381880104,1756386641212,-572.21,0.00019178,2]
[381880105,1756386641223,-480.0,0.00019178,2]
[381880106,1756386641233,-480.0,0.00019178,2]
[381880107,1756386641243,-480.0,0.00019178,2]
[381880108,1756386641253,-384.29419228,0.00019178,2]
[381880109,1756386641262,-480.0,0.00019178,2]
[381880110,1756386641272,-837.33,0.00019178,2]
[381880111,1756386641282,-480.0,0.00019178,2]
[381880112,1756386641292,-480.0,0.00019178,2]
[381880113,1756386641301,-480.0,0.00019178,2]
[381880114,1756386641310,-689.75,0.00019178,2]
[381880115,1756386641320,-480.0,0.00019178,2]
[381880116,1756386641329,-480.0,0.00019178,2]
[381880117,1756386641339,-480.0,0.00019178,2]
[381880118,1756386641348,-480.0,0.00019178,2]
[381880119,1756386641358,-480.0,0.00019178,2]
[381880120,1756386641368,-480.0,0.00019178,2]
[381880121,1756386641377,-480.0,0.00019178,2]
[381880122,1756386641386,-480.0,0.00019178,2]
[381880123,1756386641395,-702.54,0.00019178,2]
[381880124,1756386641405,-480.0,0.00019178,2]
[381880125,1756386641414,-480.0,0.00019178,2]
[381880126,1756386641423,-480.0,0.00019178,2]
[381880127,1756386641433,-480.0,0.00019178,2]
[381880128,1756386641443,-480.0,0.00019178,2]
[381880129,1756386641452,-480.0,0.00019178,2]
[381880130,1756386641462,-480.0,0.00019178,2]
[381880131,1756386641472,-480.0,0.00019178,2]
[381880132,1756386641481,-480.0,0.00019178,2]
[381880133,1756386641491,-500.0,0.00019178,2]
[381880134,1756386641500,-500.0,0.00019178,2]
[381880135,1756386641509,-482.12182581,0.00019178,2]
[381880136,1756386641518,-480.0,0.00019178,2]
[381880137,1756386641528,-480.0,0.00019178,2]
[381880138,1756386641541,-480.0,0.00019178,2]
[381880139,1756386641550,-502.71,0.00019178,2]
[381880140,1756386641559,-480.0,0.00019178,2]
[381880141,1756386641569,-480.0,0.00019178,2]
[381880142,1756386641579,-480.0,0.00019178,2]
[381880143,1756386641588,-480.0,0.00019178,2]
[381880144,1756386641597,-929.07,0.00019178,2]
[381880145,1756386641607,-480.0,0.00019178,2]
[381880146,1756386641616,-481.84747336,0.00019178,2]
[381880147,1756386641626,-480.0,0.00019178,2]
[381880148,1756386641635,-480.0,0.00019178,2]
[381880149,1756386641645,-480.0,0.00019178,2]
[381880150,1756386641654,-480.0,0.00019178,2]
[381880151,1756386641664,-292.47209949,0.00019178,2]
[381880152,1756386641673,-480.0,0.00019178,2]
[381880153,1756386641682,-480.0,0.00019178,2]
[381880154,1756386641692,-480.0,0.00019178,2]
[381880155,1756386641702,-854.63,0.00019178,2]
[381880156,1756386641712,-480.0,0.00019178,2]
[381880157,1756386641722,-480.0,0.00019178,2]
[381880158,1756386641731,-480.0,0.00019178,2]
[381880159,1756386641740,-480.0,0.00019178,2]
[381880160,1756386641750,-480.0,0.00019178,2]
[381880161,1756386641759,-480.0,0.00019178,2]
[381880162,1756386641768,-480.0,0.00019178,2]
[381880163,1756386641777,-480.0,0.00019178,2]
[381880164,1756386641787,-480.0,0.00019178,2]
[381880165,1756386641796,-480.0,0.00019178,2]
[381880166,1756386641805,-480.0,0.00019178,2]
[381880167,1756386641815,-480.0,0.00019178,2]
[381880168,1756386641824,-500.0,0.00019178,2]
[381880169,1756386641834,-500.0,0.00019178,2]
[381880170,1756386641843,-500.0,0.00019178,2]
[381880171,1756386642032,-533.06,0.00019178,2]
[381880172,1756386642042,-480.0,0.00019178,2]
[381880173,1756386642052,-480.0,0.00019178,2]
[381880174,1756386642062,-482.90788716,0.00019178,2]
[381880175,1756386642071,-480.0,0.00019178,2]
[381880176,1756386642080,-480.0,0.00019178,2]
[381880177,1756386642091,-480.0,0.00019178,2]
[381880178,1756386642100,-480.0,0.00019178,2]
[381880179,1756386642110,-480.0,0.00019178,2]
[381880180,1756386642119,-480.0,0.00019178,2]
[381880181,1756386642128,-480.0,0.00019178,2]
[381880182,1756386642137,-480.0,0.00019178,2]
[381880183,1756386642146,-480.0,0.00019178,2]
[381880184,1756386642155,-480.0,0.00019178,2]
[381880185,1756386642165,-480.0,0.00019178,2]
[381880186,1756386642174,-480.0,0.00019178,2]
[381880187,1756386642183,-480.0,0.00019178,2]
[381880188,1756386642192,-480.0,0.00019178,2]
[381880189,1756386642202,-484.14,0.00019178,2]
[381880190,1756386642212,-480.0,0.00019178,2]
[381880191,1756386642221,-480.0,0.00019178,2]
[381880192,1756386642230,-480.0,0.00019178,2]
[381880193,1756386642241,-481.39683367,0.00019178,2]
[381880194,1756386642250,-480.0,0.00019178,2]
[381880195,1756386642259,-480.0,0.00019178,2]
[381880196,1756386642269,-4633.72,0.00019178,2]
[381880197,1756386642278,-480.0,0.00019178,2]
[381880198,1756386642288,-480.0,0.00019178,2]
[381880199,1756386642297,-842.79,0.00019178,2]
[381880200,1756386642306,-480.0,0.00019178,2]
[381880201,1756386642315,-480.0,0.00019178,2]
[381880202,1756386642325,-508.65624349,0.00019178,2]
[381880203,1756386642333,-2784.79,0.00019178,2]
[381880204,1756386642343,-480.0,0.00019178,2]
[381880205,1756386642352,-480.0,0.00019178,2]
[381880206,1756386642361,-483.11382143,0.00019178,2]
[381880207,1756386642370,-498.47,0.00019178,2]
[381880208,1756386642379,-480.0,0.00019178,2]
[381880209,1756386642388,-742.62,0.00019178,2]
[381880210,1756386642397,-480.0,0.00019178,2]
[381880211,1756386642406,-2295.47,0.00019178,2]
[381880212,1756386642415,-168.46396933,0.00019178,2]
[381880213,1756386642424,-461.6006273,0.00019178,2]
[381880214,1756386642433,-480.0,0.00019178,2]
[381880215,1756386642443,-414.33812244,0.00019178,2]
[381880216,1756386642452,-587.16,0.00019178,2]
[381880217,1756386642462,-480.0,0.00019178,2]
[381880218,1756386642471,-639.33,0.00019178,2]
[381880219,1756386642480,-480.0,0.00019178,2]
[381880220,1756386642489,-480.0,0.00019178,2]
[381880221,1756386642499,-918.21,0.00019178,2]
[381880222,1756386642507,-530.36,0.00019178,2]
[381880223,1756386642517,-791.28,0.00019178,2]
[381880224,1756386642526,-1590.95,0.00019178,2]
[381880225,1756386642539,-1048.35,0.00019178,2]
[381880226,1756386642548,-557.18730523,0.00019178,2]
[381880227,1756386642557,-480.0,0.00019178,2]
[381880228,1756386642567,-480.0,0.00019178,2]
[381880229,1756386642576,-480.0,0.00019178,2]
[381880230,1756386642585,-480.0,0.00019178,2]
[381880231,1756386642595,-480.0,0.00019178,2]
[381880232,1756386642605,-480.0,0.00019178,2]
[381880233,1756386642615,-2011.48,0.00019178,2]
[381880234,1756386642627,-480.0,0.00019178,2]
[381880235,1756386642636,-480.0,0.00019178,2]
[381880236,1756386642645,-442.84493388,0.00019178,2]
[381880237,1756386642654,-480.0,0.00019178,2]
[381880238,1756386642663,-480.0,0.00019178,2]
[381880239,1756386642673,-480.0,0.00019178,2]
[381880240,1756386642682,-480.0,0.00019178,2]
[381880241,1756386642693,-480.0,0.00019178,2]
[381880242,1756386642702,-480.0,0.00019178,2]
[381880243,1756386642712,-1182.32,0.00019178,2]
[381880244,1756386642721,-480.0,0.00019178,2]
[381880245,1756386642731,-480.0,0.00019178,2]
[381880246,1756386642741,-182.61862154,0.00019178,2]
[381880247,1756386642751,-1812.78,0.00019178,2]
[381880248,1756386642763,-506.69,0.00019178,2]
[381880249,1756386642774,-480.0,0.00019178,2]
[381880250,1756386642784,-1456.4,0.00019178,2]
[381880251,1756386642794,-480.0,0.00019178,2]
[381880252,1756386642803,-480.0,0.00019178,2]
[381880253,1756386642812,-480.0,0.00019178,2]
[381880254,1756386642821,-1243.2,0.00019178,2]
[381880255,1756386642831,-550.9636281,0.00019178,2]
[381880256,1756386642840,-1770.55,0.00019178,2]
[381880257,1756386642851,-480.0,0.00019178,2]
[381880258,1756386642861,-480.0,0.00019178,2]
[381880259,1756386642870,-480.0,0.00019178,2]
[381880260,1756386642879,-480.0,0.00019178,2]
[381880261,1756386642890,-540.4,0.00019178,2]
[381880262,1756386642900,-348.22120734,0.00019178,2]
[381880263,1756386642909,-593.98,0.00019178,2]
[381880264,1756386642921,-480.0,0.00019178,2]
[381880265,1756386642931,-740.44,0.00019178,2]
[381880266,1756386642940,-3372.39,0.00019178,2]
[381880267,1756386642949,-480.0,0.00019178,2]
[381880268,1756386642959,-407.02768599,0.00019178,2]
[381880269,1756386642968,-876.31,0.00019178,2]
[381880270,1756386642978,-510.13,0.00019178,2]
[381880271,1756386642987,-480.0,0.00019178,2]
[381880272,1756386642996,-480.0,0.00019178,2]
[381880273,1756386643006,-480.0,0.00019178,2]
[381880274,1756386643015,-480.0,0.00019178,2]
[381880275,1756386643025,-480.0,0.00019178,2]
[381880276,1756386643034,-480.0,0.00019178,2]
[381880278,1756386643044,-495.87,0.00019178,2]
[381880280,1756386643053,-2446.17,0.00019178,2]
[381880282,1756386643062,-568.1,0.00019178,2]
[381880284,1756386643072,-1018.54,0.00019178,2]
[381880286,1756386643081,-480.0,0.00019178,2]
[381880287,1756386643090,-480.0,0.00019178,2]
[381880289,1756386643100,-480.0,0.00019178,2]
[381880291,1756386643110,-480.0,0.00019178,2]
[381880293,1756386643120,-696.86,0.00019178,2]
[381880295,1756386643129,-942.7,0.00019178,2]
[381880297,1756386643139,-482.35131049,0.00019178,2]
[381880299,1756386643148,-480.0,0.00019178,2]
[381880301,1756386643158,-1627.3,0.00019178,2]
[381880303,1756386643167,-480.0,0.00019178,2]
[381880305,1756386643176,-480.0,0.00019178,2]
[381880308,1756386643186,-480.0,0.00019178,2]
[381880309,1756386643195,-787.09,0.00019178,2]
[381880311,1756386643204,-609.92,0.00019178,2]
[381880313,1756386643214,-480.0,0.00019178,2]
[381880315,1756386643223,-480.0,0.00019178,2]
[381880317,1756386643232,-480.0,0.00019178,2]
[381880319,1756386643241,-536.76,0.00019178,2]
[381880321,1756386643251,-480.0,0.00019178,2]
[381880323,1756386643261,-480.0,0.00019178,2]
[381880325,1756386643270,-480.0,0.00019178,2]
[381880327,1756386643279,-587.82,0.00019178,2]
[381880329,1756386643288,-480.0,0.00019178,2]
[381880331,1756386643298,-3033.61,0.00019178,2]
[381880333,1756386643308,-846.54,0.00019178,2]
[381880335,1756386643317,-480.0,0.00019178,2]
[381880337,1756386643326,-480.0,0.00019178,2]
[381880339,1756386643335,-480.0,0.00019178,2]
[381880341,1756386643344,-480.0,0.00019178,2]
[381880342,1756386643353,-3571.66,0.00019178,2]
[381880344,1756386643362,-480.0,0.00019178,2]
[381880345,1756386643371,-480.0,0.00019178,2]
[381880346,1756386643380,-2236.18,0.00019178,2]
[381880347,1756386643390,-480.0,0.00019178,2]
[381880348,1756386643399,-480.0,0.00019178,2]
[381880349,1756386643408,-480.0,0.00019178,2]
[381880350,1756386643417,-480.0,0.00019178,2]
[381880351,1756386643426,-480.0,0.00019178,2]
[381880352,1756386643435,-480.0,0.00019178,2]
[381880353,1756386643445,-480.0,0.00019178,2]
[381880354,1756386643454,-480.0,0.00019178,2]
[381880355,1756386643463,-2804.02,0.00019178,2]
[381880356,1756386643472,-721.69,0.00019178,2]
[381880357,1756386643481,-2608.45,0.00019178,2]
[381880358,1756386643490,-480.0,0.00019178,2]
[381880359,1756386643500,-1478.73,0.00019178,2]
[381880360,1756386643509,-480.0,0.00019178,2]
[381880361,1756386643518,-480.0,0.00019178,2]
[381880362,1756386643527,-480.0,0.00019178,2]
[381880363,1756386643539,-637.83,0.00019178,2]
[381880364,1756386643548,-569.37,0.00019178,2]
[381880365,1756386643557,-480.0,0.00019178,2]
[381880366,1756386643566,-480.0,0.00019178,2]
[381880367,1756386643576,-1297.17,0.00019178,2]
[381880368,1756386643585,-480.0,0.00019178,2]
[381880369,1756386643595,-329.44196283,0.00019178,2]
[381880370,1756386643604,-1131.71,0.00019178,2]
[381880371,1756386643613,-533.44,0.00019178,2]
[381880372,1756386643622,-480.0,0.00019178,2]
[381880373,1756386643631,-480.0,0.00019178,2]
[381880374,1756386643641,-639.96,0.00019178,2]
[381880375,1756386643649,-207.16992989,0.00019178,2]
[381880376,1756386643658,-1534.57,0.00019178,2]
[381880377,1756386643667,-480.0,0.00019178,2]
[381880378,1756386643677,-480.0,0.00019178,2]
[381880379,1756386643686,-651.1,0.00019178,2]
[381880380,1756386643695,-480.0,0.00019178,2]
[381880381,1756386643704,-717.2,0.00019178,2]
[381880382,1756386643714,-481.14720093,0.00019178,2]
[381880383,1756386643724,-480.0,0.00019178,2]
[381880384,1756386643733,-3391.57,0.00019178,2]
[381880385,1756386643744,-605.88,0.00019178,2]
[381880386,1756386643753,-480.0,0.00019178,2]
[381880387,1756386643762,-480.0,0.00019178,2]
[381880388,1756386643772,-480.0,0.00019178,2]
[381880389,1756386643781,-480.0,0.00019178,2]
[381880390,1756386643790,-480.0,0.00019178,2]
[381880391,1756386643800,-1118.37,0.00019178,2]
[381880392,1756386643809,-480.0,0.00019178,2]
[381880393,1756386643817,-480.0,0.00019178,2]
[381880394,1756386643828,-480.33437067,0.00019178,2]
[381880395,1756386643837,-2399.97,0.00019178,2]
[381880396,1756386643847,-587.86,0.00019178,2]
[381880397,1756386643857,-480.0,0.00019178,2]
[381880398,1756386643866,-5606.79,0.00019178,2]
[381880399,1756386643876,-480.0,0.00019178,2]
[381880400,1756386643885,-535.23,0.00019178,2]
[381880401,1756386643894,-489.45,0.00019178,2]
[381880402,1756386643903,-480.0,0.00019178,2]
[381880403,1756386643912,-480.0,0.00019178,2]
[381880404,1756386643921,-480.0,0.00019178,2]
[381880405,1756386643930,-480.0,0.00019178,2]
[381880406,1756386643939,-243.07938692,0.00019178,2]
[381880407,1756386643949,-480.0,0.00019178,2]
[381880408,1756386643958,-2597.91,0.00019178,2]
[381880409,1756386643967,-480.0,0.00019178,2]
[381880410,1756386643976,-1698.72,0.00019178,2]
[381880411,1756386643985,-634.82,0.00019178,2]
[381880412,1756386643995,-1185.27,0.00019178,2]
[381880413,1756386644003,-480.0,0.00019178,2]
[381880414,1756386644014,-480.0,0.00019178,2]
[381880415,1756386644023,-480.0,0.00019178,2]
[381880416,1756386644033,-480.0,0.00019178,2]
[381880417,1756386644042,-480.0,0.00019178,2]
[381880418,1756386644051,-552.35445326,0.00019178,2]
[381880419,1756386644061,-480.0,0.00019178,2]
[381880420,1756386644071,-480.0,0.00019178,2]
[381880421,1756386644080,-518.06911963,0.00019178,2]
[381880422,1756386644089,-3000.0,0.000192,2]
[381880423,1756386644098,-1207.7041043,0.00019203,2]
[381880424,1756386644107,-5000.0,0.00019233,2]
[381880425,1756386644117,-415.0,0.00019287,2]
[381880426,1756386644127,-994.27,0.00019352,2]
[381880427,1756386644137,-168.0,0.00019411,2]
[381880428,1756386644146,-85137.0108676,0.00019417,2]
[381880429,1756386644156,-151.0,0.00019417,2]
[381880430,1756386644165,-151.0,0.00019417,2]
[381880431,1756386644174,-151.0,0.00019417,2]
[381880432,1756386644183,-218.186019,0.00019417,2]
[381880433,1756386644192,-256.975659,0.00019417,2]
[381880434,1756386644201,-151.0,0.00019417,2]
[381880435,1756386644211,-151.0,0.00019417,2]
[381880436,1756386644221,-151.0,0.00019417,2]
[381880437,1756386644230,-151.0,0.00019417,2]
[381880438,1756386644240,-151.0,0.00019417,2]
[381880439,1756386644250,-151.0,0.00019417,2]
[381880440,1756386644259,-151.0,0.00019417,2]
[381880441,1756386644268,-151.0,0.00019417,2]
[381880442,1756386644278,-151.0,0.00019417,2]
[381880443,1756386644287,-151.0,0.00019417,2]
[381880444,1756386644297,-151.0,0.00019417,2]
[381880445,1756386644307,-151.0,0.00019417,2]
[381880446,1756386644317,-298.903059,0.00019417,2]
[381880447,1756386644327,-151.0,0.00019417,2]
[381880448,1756386644336,-151.0,0.00019417,2]
[381880449,1756386644346,-151.0,0.00019417,2]
[381880450,1756386644355,-151.0,0.00019417,2]
[381880451,1756386644364,-152.256969,0.00019417,2]
[381880452,1756386644374,-151.422193,0.00019417,2]
[381880453,1756386644384,-151.0,0.00019417,2]
[381880454,1756386644393,-151.0,0.00019417,2]
[381880455,1756386644402,-247.331902,0.00019417,2]
[381880456,1756386644412,-151.0,0.00019417,2]
[381880457,1756386644422,-151.0,0.00019417,2]
[381880458,1756386644431,-151.0,0.00019417,2]
[381880459,1756386644440,-151.0,0.00019417,2]
[381880460,1756386644450,-151.0,0.00019417,2]
[381880461,1756386644459,-151.0,0.00019417,2]
[381880462,1756386644468,-151.0,0.00019417,2]
[381880463,1756386644477,-151.0,0.00019417,2]
[381880464,1756386644489,-151.0,0.00019417,2]
[381880465,1756386644498,-151.0,0.00019417,2]
[381880466,1756386644507,-163.308692,0.00019417,2]
[381880467,1756386644517,-151.0,0.00019417,2]
[381880468,1756386644526,-151.0,0.00019417,2]
[381880469,1756386644539,-151.0,0.00019417,2]
[381880470,1756386644549,-169.776642,0.00019417,2]
[381880471,1756386644558,-151.0,0.00019417,2]
[381880472,1756386644567,-151.0,0.00019417,2]
[381880473,1756386644578,-151.0,0.00019417,2]
[381880474,1756386644588,-151.0,0.00019417,2]
[381880475,1756386644598,-151.0,0.00019417,2]
[381880476,1756386644608,-151.0,0.00019417,2]
[381880477,1756386644617,-151.0,0.00019417,2]
[381880478,1756386644627,-151.0,0.00019417,2]
[381880479,1756386644636,-155.1116,0.00019417,2]
[381880480,1756386644645,-151.0,0.00019417,2]
[381880481,1756386644655,-151.0,0.00019417,2]
[381880482,1756386644664,-151.0,0.00019417,2]
[381880483,1756386644673,-151.0,0.00019417,2]
[381880484,1756386644683,-151.0,0.00019417,2]
[381880485,1756386644691,-151.0,0.00019417,2]
[381880486,1756386644700,-200.393556,0.00019417,2]
[381880487,1756386644710,-151.0,0.00019417,2]
[381880488,1756386644719,-3710.89,0.0001945,2]
[381880489,1756386644728,-480.0,0.00019452,2]
[381880490,1756386644738,-480.0,0.00019452,2]
[381880491,1756386644747,-481.18494462,0.00019452,2]
[381880492,1756386644756,-480.0,0.00019452,2]
[381880493,1756386644765,-480.0,0.00019452,2]
[381880494,1756386644774,-480.0,0.00019452,2]
[381880495,1756386644784,-532.99,0.00019452,2]
[381880496,1756386644793,-480.0,0.00019452,2]
[381880497,1756386644802,-480.0,0.00019452,2]
[381880498,1756386644811,-480.0,0.00019452,2]
[381880499,1756386644820,-480.0,0.00019452,2]
[381880500,1756386644829,-480.0,0.00019452,2]
[381880501,1756386644838,-480.0,0.00019452,2]
[381880502,1756386644847,-480.0,0.00019452,2]
[381880503,1756386644856,-677.82,0.00019452,2]
[381880504,1756386644865,-480.0,0.00019452,2]
[381880505,1756386644874,-480.0,0.00019452,2]
[381880506,1756386644883,-480.0,0.00019452,2]
[381880507,1756386644892,-480.0,0.00019452,2]
[381880508,1756386644901,-582.15,0.00019452,2]
[381880509,1756386644912,-480.0,0.00019452,2]
[381880510,1756386644921,-480.0,0.00019452,2]
[381880511,1756386644930,-619.98859574,0.00019452,2]
[381880512,1756386644939,-480.0,0.00019452,2]
[381880513,1756386644949,-482.41,0.00019452,2]
[381880514,1756386644958,-480.0,0.00019452,2]
[381880515,1756386644967,-480.0,0.00019452,2]
[381880516,1756386644976,-480.0,0.00019452,2]
[381880517,1756386644985,-480.0,0.00019452,2]
[381880518,1756386644995,-480.0,0.00019452,2]
[381880519,1756386645003,-480.0,0.00019452,2]
[381880520,1756386645012,-480.0,0.00019452,2]
[381880521,1756386645021,-480.0,0.00019452,2]
[381880522,1756386645030,-480.0,0.00019452,2]
[381880523,1756386645039,-480.0,0.00019452,2]
[381880524,1756386645049,-480.0,0.00019452,2]
[381880525,1756386645058,-480.0,0.00019452,2]
[381880526,1756386645067,-480.0,0.00019452,2]
[381880527,1756386645076,-480.0,0.00019452,2]
[381880528,1756386645086,-480.0,0.00019452,2]
[381880529,1756386645095,-480.0,0.00019452,2]
[381880530,1756386645105,-480.0,0.00019452,2]
[381880531,1756386645114,-724.68,0.00019452,2]
[381880532,1756386645123,-480.0,0.00019452,2]
[381880533,1756386645133,-480.0,0.00019452,2]
[381880534,1756386645142,-480.0,0.00019452,2]
[381880535,1756386645151,-960.23,0.00019452,2]
[381880536,1756386645160,-480.0,0.00019452,2]
[381880537,1756386645169,-583.5,0.00019452,2]
[381880538,1756386645179,-480.0,0.00019452,2]
[381880539,1756386645187,-151.0,0.00019452,2]
[381880540,1756386645197,-480.0,0.00019452,2]
[381880541,1756386645206,-785.81,0.00019452,2]
[381880542,1756386645215,-480.0,0.00019452,2]
[381880543,1756386645224,-480.0,0.00019452,2]
[381880544,1756386645234,-480.0,0.00019452,2]
[381880545,1756386645243,-480.0,0.00019452,2]
[381880546,1756386645253,-480.0,0.00019452,2]
[381880547,1756386645263,-480.0,0.00019452,2]
[381880548,1756386645272,-480.0,0.00019452,2]
[381880549,1756386645281,-480.0,0.00019452,2]
[381880550,1756386645290,-480.0,0.00019452,2]
[381880551,1756386645299,-480.0,0.00019452,2]
[381880552,1756386645308,-480.0,0.00019452,2]
[381880553,1756386645317,-480.0,0.00019452,2]
[381880554,1756386645325,-480.0,0.00019452,2]
[381880555,1756386645335,-504.45,0.00019452,2]
[381880556,1756386645344,-480.0,0.00019452,2]
[381880557,1756386645353,-151.0,0.00019452,2]
[381880558,1756386645363,-480.0,0.00019452,2]
[381880559,1756386645372,-480.0,0.00019452,2]
[381880560,1756386645381,-480.0,0.00019452,2]
[381880561,1756386645391,-480.0,0.00019452,2]
[381880562,1756386645400,-480.0,0.00019452,2]
[381880563,1756386645409,-480.0,0.00019452,2]
[381880564,1756386645418,-480.0,0.00019452,2]
[381880565,1756386645427,-480.0,0.00019452,2]
[381880566,1756386645436,-480.0,0.00019452,2]
[381880567,1756386645445,-653.49,0.00019452,2]
[381880568,1756386645455,-1494.89,0.00019452,2]
[381880569,1756386645465,-480.0,0.00019452,2]
[381880570,1756386645474,-480.0,0.00019452,2]
[381880571,1756386645484,-359.53491124,0.00019452,2]
[381880572,1756386645494,-510.67,0.00019452,2]
[381880573,1756386645503,-480.0,0.00019452,2]
[381880574,1756386645513,-480.0,0.00019452,2]
[381880575,1756386645522,-480.0,0.00019452,2]
[381880576,1756386645534,-480.0,0.00019452,2]
[381880577,1756386645543,-480.0,0.00019452,2]
[381880578,1756386645552,-480.0,0.00019452,2]
[381880579,1756386645563,-480.0,0.00019452,2]
[381880580,1756386645572,-480.0,0.00019452,2]
[381880581,1756386645582,-480.0,0.00019452,2]
[381880582,1756386645591,-907.03,0.00019452,2]
[381880583,1756386645599,-480.0,0.00019452,2]
[381880584,1756386645609,-480.0,0.00019452,2]
[381880585,1756386645618,-480.0,0.00019452,2]
[381880586,1756386645627,-480.0,0.00019452,2]
[381880587,1756386645637,-672.81,0.00019452,2]
[381880588,1756386645645,-480.0,0.00019452,2]
[381880589,1756386645655,-480.0,0.00019452,2]